bitfinex/quotes_ETHUSD_20260313
["timestamp","ask_amount","ask_price","bid_price","bid_amount"]
[1773390033924,0.60165292,2096.1,2096.0,0.001]
[1773390034727,1.7943441,2096.1,2096.0,0.001]
[1773390035086,1.85397865,2096.1,2096.0,0.001]
[1773390035410,1.7943441,2096.1,2096.0,0.001]
[1773390036106,1.85397865,2096.1,2096.0,0.001]
[1773390037505,1.19265763,2096.2,2096.0,0.001]
[1773390038102,1.79431055,2096.2,2096.0,0.001]
[1773390038298,0.60165292,2096.2,2096.0,0.001]
[1773390038498,1.19448416,2096.5,2096.0,0.62894964]
[1773390039305,0.002,2096.5,2096.1,1.19269118]
[1773390039516,0.002,2096.5,2096.1,0.62794964]
[1773390041206,0.6632761,2096.5,2096.0,0.001]
[1773390041412,1.19252051,2096.4,2096.0,0.001]
[1773390041577,0.05962886,2096.3,2096.0,0.001]
[1773390041782,1.19252051,2096.4,2096.0,0.001]
[1773390042203,0.00970278,2096.3,2096.0,0.001]
[1773390043009,0.60165292,2096.2,2096.0,0.001]
[1773390043206,0.00970278,2096.1,2096.0,0.001]
[1773390044499,0.01170278,2096.1,2096.0,0.001]
[1773390044680,1.80404609,2096.1,2096.0,0.001]
[1773390044879,1.80404609,2096.1,2095.9,0.001]
[1773390045809,0.59965213,2096.0,2095.9,0.001]
[1773390046794,1.79240022,2096.0,2095.9,0.001]
[1773390051526,1.74240022,2096.0,2095.9,0.001]
[1773390052831,1.19286191,2095.8,2095.6,0.001]
[1773390057430,0.00970278,2095.7,2095.6,0.001]
[1773390059103,1.20262161,2095.7,2095.4,0.001]
[1773390059307,1.78913412,2095.7,2095.4,0.001]
[1773390059509,1.20262161,2095.7,2095.4,0.001]
[1773390059712,1.78913412,2095.7,2095.4,0.001]
[1773390060320,1.20262161,2095.7,2095.4,0.59254766]
[1773390061521,0.58651251,2095.6,2095.4,0.001]
[1773390061709,0.80953662,2095.5,2095.1,1.629]
[1773390061921,0.58651251,2095.4,2095.1,1.629]
[1773390063441,1.77965716,2095.4,2095.1,1.629]
[1773390063931,1.77965716,2095.4,2095.1,2.22054766]
[1773390063932,1.19314465,2095.4,2095.1,2.22054766]
[1773390064134,0.58651251,2095.3,2095.0,0.0011]
[1773390064435,0.58651251,2095.3,2094.8,0.0011]
[1773390064633,0.58651251,2095.3,2094.8,0.59264766]
[1773390065413,1.19331742,2095.0,2094.8,0.0011]
[1773390065614,0.58651251,2094.9,2094.4,0.59264766]
[1773390065830,0.58651251,2094.7,2094.2,0.59154766]
[1773390066136,0.58651251,2094.7,2094.3,0.63929631]
[1773390066923,0.58651251,2094.7,2094.3,0.59154766]
[1773390067841,0.58651251,2094.7,2094.3,1.78526344]
[1773390068137,1.78000432,2094.7,2094.3,0.59154766]
[1773390071346,3.79874211,2094.7,2094.5,0.001]
[1773390071520,3.79874211,2094.7,2094.3,0.59154766]
[1773390072025,3.79874211,2094.7,2094.3,0.59254766]
[1773390074722,0.58651251,2094.6,2094.3,0.001]
[1773390075044,0.58651251,2094.6,2094.1,2.21454766]
[1773390075045,0.58651251,2094.6,2094.1,1.623]
[1773390075252,0.58651251,2094.4,2093.5,0.05019203]
[1773390076459,0.58651251,2094.4,2093.7,0.05019203]
[1773390076621,0.58651251,2094.3,2093.8,1.24419336]
[1773390076825,0.58651251,2094.3,2093.8,1.29195341]
[1773390077026,0.58651251,2094.3,2093.8,0.05019203]
[1773390077260,0.58651251,2094.3,2093.7,1.19401223]
[1773390077467,0.58651251,2094.3,2093.6,2.86826136]
[1773390078660,0.58651251,2094.1,2093.6,1.67419203]
[1773390078865,0.58651251,2094.1,2093.6,1.624]
[1773390080856,0.47991377,2093.9,2093.6,1.624]
[1773390082158,0.47991377,2093.9,2093.2,1.19431364]
[1773390082928,0.47991377,2093.7,2093.1,1.60590939]
[1773390083131,0.47991377,2093.7,2093.0,1.19442245]
[1773390083351,0.47991377,2093.7,2093.1,1.624]
[1773390084841,1.67397423,2093.7,2093.2,1.2943043]
[1773390085348,1.67397423,2093.7,2093.5,0.0011]
[1773390085541,1.67397529,2093.7,2093.5,0.0011]
[1773390085948,0.47991377,2093.6,2093.5,0.0011]
[1773390087554,1.67397006,2093.8,2093.5,0.0011]
[1773390088062,0.47991377,2093.7,2093.5,0.0011]
[1773390088759,1.19396748,2093.9,2093.5,0.0011]
[1773390088760,1.20370904,2093.8,2093.5,0.0011]
[1773390088963,1.68362281,2093.8,2093.5,0.0011]
[1773390089349,0.48961655,2093.8,2093.5,0.0011]
[1773390089674,0.47991377,2093.7,2093.5,0.0011]
[1773390089876,0.48091377,2094.1,2093.5,0.05331811]
[1773390090177,1.10751856,2094.3,2093.8,0.05121811]
[1773390090399,0.47991377,2094.7,2094.1,0.05121811]
[1773390091240,0.47991377,2094.7,2094.1,1.2450133]
[1773390091448,1.6734165,2094.7,2094.2,0.05121811]
[1773390093152,5.14097521,2095.1,2094.4,0.05121811]
[1773390093153,0.47991377,2094.9,2094.4,0.05121811]
[1773390094190,0.47991377,2094.9,2094.4,1.67321811]
[1773390095186,1.67329412,2094.9,2094.4,1.67321811]
[1773390095371,1.67329412,2094.9,2094.4,1.622]
[1773390095372,0.47991377,2094.8,2094.4,1.622]
[1773390097687,0.47991377,2094.7,2094.4,1.6231]
[1773390098077,0.001,2094.6,2094.4,1.6231]
[1773390099683,0.51456758,2094.6,2094.4,1.6231]
[1773390099870,0.51456758,2094.6,2094.4,4.1931]
[1773390100067,0.51456758,2094.6,2094.1,0.0011]
[1773390100269,0.51356758,2094.5,2094.1,0.0011]
[1773390101791,0.51356758,2094.3,2094.1,0.0011]
[1773390102491,4.77463712,2094.5,2094.1,0.0011]
[1773390102492,0.51356758,2094.5,2094.1,0.0011]
[1773390103272,0.001,2094.6,2094.1,0.0011]
[1773390103865,0.001,2094.6,2094.1,1.19493028]
[1773390104262,0.88147964,2095.1,2094.1,1.19493028]
[1773390104464,0.36791206,2095.1,2094.4,8.094192]
[1773390104686,0.36791206,2095.1,2094.5,1.617]
[1773390106393,0.36791206,2095.1,2094.6,1.1935453]
[1773390108400,0.36791206,2095.1,2094.5,2.81059817]
[1773390108401,0.51356758,2095.0,2094.5,2.81059817]
[1773390109986,0.51356758,2095.2,2094.5,2.85834226]
[1773390110372,0.51356758,2095.1,2094.5,2.81059817]
[1773390111101,0.51456758,2094.9,2094.5,1.617]
[1773390112302,0.51356758,2094.7,2094.4,0.0011]
[1773390112507,0.51356758,2094.7,2094.1,0.0011]
[1773390114601,0.51301758,2094.5,2094.1,0.0011]
[1773390115498,0.51301758,2094.5,2093.9,0.0011]
[1773390116699,1.70667686,2094.4,2093.9,0.0011]
[1773390116900,0.51301758,2094.3,2093.9,0.0011]
[1773390117695,1.19364647,2094.5,2093.9,0.03489398]
[1773390118096,1.7041403,2094.5,2093.9,0.04885777]
[1773390118890,1.7041403,2094.5,2093.9,0.0011]
[1773390120305,0.51049383,2094.4,2093.9,0.0011]
[1773390121186,1.70419687,2094.4,2093.9,0.0011]
[1773390121386,0.51049383,2094.3,2093.9,0.0011]
[1773390122882,0.51049383,2094.3,2094.1,0.0011]
[1773390123397,1.19370304,2094.4,2094.1,0.0011]
[1773390124213,1.70414156,2094.5,2094.1,0.0011]
[1773390124586,5.021,2094.7,2094.1,0.0011]
[1773390124587,0.51049383,2094.7,2094.1,0.0011]
[1773390125211,1.19437525,2094.9,2094.1,0.0011]
[1773390125451,1.19437525,2094.9,2094.1,2.18407547]
[1773390125601,1.19437525,2094.9,2094.1,2.23182867]
[1773390126204,0.51049383,2094.8,2094.1,0.0011]
[1773390126605,0.51049383,2094.6,2094.1,0.0011]
[1773390127002,0.51049383,2094.6,2093.9,0.0011]
[1773390127808,0.50994383,2094.4,2093.9,0.0011]
[1773390130212,0.50994383,2094.2,2093.9,0.0011]
[1773390132713,1.70373957,2094.2,2093.9,0.0011]
[1773390132937,1.70373437,2094.2,2093.9,0.0011]
[1773390133283,0.50994383,2094.2,2093.9,0.0011]
[1773390133519,1.19375263,2094.3,2093.9,0.0011]
[1773390133920,1.70369646,2094.3,2093.9,0.0011]
[1773390134084,0.50994383,2094.2,2093.9,0.0011]
[1773390134613,1.7037336,2094.2,2093.9,0.0011]
[1773390134991,0.50994383,2094.4,2094.1,0.0011]
[1773390135315,1.70509667,2094.8,2094.1,0.0011]
[1773390135616,0.51163929,2094.7,2094.1,0.0011]
[1773390137316,1.70517502,2094.7,2094.1,0.0011]
[1773390137617,1.19346947,2094.8,2094.1,0.0011]
[1773390138419,1.70605379,2094.9,2094.1,0.0011]
[1773390138722,1.1943749,2094.9,2094.1,2.18178455]
[1773390139222,0.51163929,2094.8,2094.1,2.18178455]
[1773390139521,0.001,2094.9,2094.2,1.19377327]
[1773390139721,0.001,2094.9,2094.3,2.02712727]
[1773390139900,1.70483567,2095.3,2094.6,2.02712727]
[1773390140227,1.70483567,2095.3,2094.7,1.614]
[1773390141527,1.70483567,2095.3,2094.7,2.80743791]
[1773390142124,1.19319638,2095.3,2094.7,2.80743791]
[1773390143123,5.28599801,2095.4,2094.7,2.80743791]
[1773390143124,1.70675522,2095.4,2094.7,2.80743791]
[1773390143908,0.51163929,2095.3,2094.7,2.80743791]
[1773390146632,1.7048428,2095.2,2094.7,2.80743791]
[1773390147523,0.001,2095.1,2094.7,2.80743791]
[1773390148232,0.51163929,2095.0,2094.7,1.614]
[1773390148531,0.51163929,2095.0,2094.3,0.0011]
[1773390148715,0.51163929,2094.8,2094.3,0.0011]
[1773390149232,0.51163929,2094.8,2094.3,0.04884865]
[1773390149533,0.51163929,2095.0,2094.3,0.04884865]
[1773390149733,1.19426156,2095.1,2094.4,1.614]
[1773390149931,0.001,2095.1,2094.5,0.04774409]
[1773390150712,0.001,2095.1,2094.6,1.1935453]
[1773390150912,0.001,2095.1,2094.7,0.04773953]
[1773390151315,0.001,2095.1,2094.6,1.1935453]
[1773390151531,0.001,2095.1,2094.7,0.04773953]
[1773390153455,0.002,2095.4,2094.8,3.22055862]
[1773390153612,1.70663935,2095.6,2094.8,3.22055862]
[1773390155717,1.70663935,2095.6,2094.9,0.04773497]
[1773390155922,1.70663935,2095.6,2095.0,1.614]
[1773390156544,0.51163929,2095.5,2095.0,1.614]
[1773390157615,0.51163929,2095.3,2095.0,1.614]
[1773390157957,0.51163929,2095.3,2094.4,4.77460942]
[1773390159054,0.51163929,2095.3,2094.5,1.614]
[1773390161054,0.51163929,2095.1,2094.7,0.0011]
[1773390164089,0.001,2095.2,2094.7,0.0011]
[1773390164389,1.70474008,2095.4,2094.7,0.0011]
[1773390164597,0.51163929,2095.3,2094.7,0.0011]
[1773390166274,1.70481025,2095.3,2094.7,0.0011]
[1773390166475,0.51163929,2095.4,2094.7,0.0011]
[1773390169985,0.51163929,2095.2,2094.7,0.0011]
[1773390173296,1.19326046,2095.1,2094.7,0.0011]
[1773390174593,1.70489975,2095.1,2094.7,0.0011]
[1773390174890,1.70489975,2095.1,2094.9,0.0011]
[1773390175265,0.51163929,2095.0,2094.9,0.0011]
[1773390175595,1.70495671,2095.0,2094.9,0.0011]
[1773390177392,0.50939383,2094.9,2094.7,0.0011]
[1773390177688,1.70280642,2094.9,2094.7,0.0011]
[1773390180504,0.50939383,2094.9,2094.7,0.0011]
[1773390180666,1.1933666,2095.0,2094.7,0.0011]
[1773390181183,1.70276043,2095.0,2094.7,0.0011]
[1773390181484,0.50939383,2094.9,2094.7,0.0011]
[1773390183496,1.70278821,2094.9,2094.7,0.0011]
[1773390183704,0.50939383,2094.9,2094.7,0.0011]
[1773390184074,1.70277552,2094.9,2094.7,0.0011]
[1773390185896,0.50939383,2094.8,2094.7,0.0011]
[1773390186868,0.50939383,2094.8,2094.5,1.6151]
[1773390187068,0.50939383,2094.8,2094.3,0.0011]
[1773390187484,1.70233215,2094.7,2094.3,0.0011]
[1773390188379,1.19348832,2094.7,2094.3,0.0011]
[1773390188790,1.19333803,2095.0,2094.3,0.85892253]
[1773390188993,1.70218186,2095.0,2094.3,0.85892253]
[1773390189191,1.70218186,2095.0,2094.6,0.001]
[1773390189794,0.50884383,2094.9,2094.6,0.001]
[1773390191583,1.70227518,2094.8,2094.6,0.001]
[1773390192804,1.19343135,2094.8,2094.6,0.001]
[1773390193031,0.50884383,2094.7,2094.6,0.001]
[1773390193210,0.50884383,2094.7,2094.4,0.001]
[1773390194493,1.19343135,2094.8,2094.4,0.001]
[1773390194696,1.70177518,2094.8,2094.4,0.001]
[1773390194895,0.50834383,2094.8,2094.4,0.001]
[1773390195101,1.70178529,2094.8,2094.4,0.001]
[1773390195689,0.50834383,2094.8,2094.4,0.001]
[1773390196089,1.19340833,2094.9,2094.4,0.001]
[1773390197627,0.50834383,2095.0,2094.4,0.001]
[1773390197794,0.50934383,2095.2,2094.5,0.81005591]
[1773390198222,0.50934383,2095.2,2094.7,0.81005591]
[1773390198635,0.51034383,2095.6,2095.1,0.81005591]
[1773390198927,0.002,2095.9,2095.3,0.81005591]
[1773390199300,0.002,2095.9,2095.4,1.612]
[1773390199599,0.51034383,2095.9,2095.4,1.612]
[1773390199800,0.51034383,2095.9,2095.5,1.19303268]
[1773390200319,0.002,2095.9,2095.5,1.19303268]
[1773390202202,0.001,2095.7,2095.5,1.19303268]
[1773390202398,0.002,2095.9,2095.5,1.19303268]
[1773390202830,0.51034383,2095.9,2095.4,1.612]
[1773390203410,0.51034383,2095.9,2094.6,4.19995567]
[1773390203609,0.50834383,2095.6,2094.6,3.3701185]
[1773390204028,0.50834383,2095.4,2094.6,3.3701185]
[1773390204232,0.50834383,2095.4,2094.7,0.04773953]
[1773390204725,0.50834383,2095.4,2094.8,1.609]
[1773390204915,0.50834383,2095.4,2094.9,0.04773497]
[1773390206537,1.70149039,2095.3,2094.8,2.80238441]
[1773390206709,0.50834383,2095.2,2094.8,2.80238441]
[1773390208231,0.50834383,2095.6,2094.9,0.04773497]
[1773390209330,1.19303268,2095.5,2095.0,1.19331742]
[1773390209657,1.70137651,2095.5,2095.0,1.19331742]
[1773390209820,0.50834383,2095.5,2095.0,1.19331742]
[1773390210547,0.50834383,2095.7,2095.1,2.0233474]
[1773390210709,1.70319141,2095.9,2095.1,2.07107781]
[1773390211540,1.70315573,2095.9,2095.2,1.19320351]
[1773390213155,0.51034383,2095.9,2095.2,1.19320351]
[1773390213520,1.70296549,2096.3,2095.4,2.0233474]
[1773390213741,1.70296549,2096.3,2095.5,1.611]
[1773390214448,0.51034383,2096.3,2095.7,2.0233474]
[1773390215320,0.51034383,2096.3,2095.8,1.19286191]
[1773390216646,0.002,2096.3,2095.8,1.19286191]
[1773390221653,0.002,2096.3,2096.0,0.8087532]
[1773390221862,0.002,2096.5,2096.2,0.8087532]
[1773390222154,0.002,2096.7,2096.4,0.8087532]
[1773390222324,0.002,2096.7,2096.3,1.1925322]
[1773390222524,0.51034383,2096.7,2096.3,1.1925322]
[1773390224425,0.002,2096.7,2096.4,0.8087532]
[1773390224750,1.70261483,2096.9,2096.4,0.8087532]
[1773390226465,0.50834383,2096.8,2096.4,2.00126373]
[1773390226654,0.001,2096.5,2096.4,2.00126373]
[1773390226956,0.50834383,2096.8,2096.4,2.00126373]
[1773390227154,0.50834383,2096.8,2096.4,0.8087532]
[1773390227662,0.50834383,2096.8,2096.3,1.19253571]
[1773390227868,0.50834383,2096.8,2096.3,1.2402388]
[1773390228530,1.70064495,2096.8,2096.3,1.2402388]
[1773390229349,0.002,2096.9,2096.5,2.02121293]
[1773390229547,1.7025243,2097.0,2096.5,2.02121293]
[1773390229740,1.7025243,2097.0,2096.6,1.615]
[1773390230055,0.51034383,2097.0,2096.6,1.615]
[1773390230253,1.70252576,2097.0,2096.6,1.615]
[1773390230457,0.50834383,2096.9,2096.3,0.04770309]
[1773390230659,0.50834383,2096.7,2096.5,1.616]
[1773390233473,1.70314038,2096.9,2096.5,2.80846312]
[1773390233840,0.49080463,2097.0,2096.5,3.27397784]
[1773390234936,0.002,2097.0,2096.6,0.46551472]
[1773390235160,0.002,2097.0,2096.6,2.48672765]
[1773390235652,0.002,2097.0,2096.6,3.67908406]
[1773390236033,0.49080463,2097.0,2096.6,3.67908406]
[1773390236230,0.48880463,2097.8,2097.1,0.46551472]
[1773390236632,0.48880463,2097.8,2097.2,2.08251472]
[1773390237365,0.48880463,2097.8,2097.2,1.617]
[1773390237854,0.48880463,2097.8,2097.2,2.8090186]
[1773390238071,0.48880463,2097.7,2097.2,2.8090186]
[1773390238455,0.48880463,2097.7,2097.2,3.27453332]
[1773390238636,1.68051524,2097.9,2097.3,0.46551472]
[1773390238966,0.48880463,2097.9,2097.3,2.92089825]
[1773390239133,1.68036415,2098.1,2097.4,0.46551472]
[1773390239463,1.68036415,2098.1,2097.2,2.8090186]
[1773390239464,0.48880463,2098.7,2097.9,2.02121293]
[1773390239634,0.48880463,2098.7,2097.4,0.46551472]
[1773390239831,1.19127037,2098.6,2097.5,1.619]
[1773390240159,0.48880463,2098.5,2097.5,2.81085184]
[1773390240582,0.48880463,2098.5,2097.7,0.46551472]
[1773390240746,0.48880463,2098.5,2097.8,0.46551472]
[1773390241253,0.48880463,2098.5,2097.7,16.002194]
[1773390241462,0.48880463,2098.5,2097.3,4.76758045]
[1773390241463,0.48880463,2098.4,2097.1,0.46551472]
[1773390241658,0.48880463,2097.9,2097.0,1.19214374]
[1773390241866,0.48880463,2097.7,2097.0,1.19214374]
[1773390242066,0.48880463,2097.7,2096.7,1.19234189]
[1773390242441,0.48880463,2097.7,2096.7,3.21355482]
[1773390242737,0.48880463,2097.7,2096.8,1.619]
[1773390242963,0.48880463,2097.7,2096.9,0.04768944]
[1773390243170,0.48880463,2097.7,2096.8,1.619]
[1773390244045,0.48880463,2097.5,2096.8,1.619]
[1773390245637,0.48880463,2097.5,2096.8,2.81129015]
[1773390246255,1.68075657,2097.4,2096.8,2.81129104]
[1773390246588,0.48880463,2097.4,2096.8,2.81129104]
[1773390246743,0.48880463,2097.4,2096.8,3.27680576]
[1773390248882,0.48880463,2097.2,2096.6,0.46651472]
[1773390249177,0.48880463,2097.2,2096.7,1.622]
[1773390250251,0.48880463,2097.2,2096.6,0.001]
[1773390251073,0.48880463,2097.0,2096.6,0.001]
[1773390251597,0.48880463,2097.0,2096.6,1.624]
[1773390253171,1.19223615,2096.9,2096.6,1.624]
[1773390253364,1.68104078,2096.9,2096.6,1.624]
[1773390254267,0.48880463,2096.8,2096.6,1.624]
[1773390255251,1.19223615,2096.9,2096.6,1.624]
[1773390255653,1.68104078,2096.9,2096.6,1.624]
[1773390255953,0.48880463,2096.8,2096.4,0.001]
[1773390257582,0.48880463,2096.8,2096.1,0.001]
[1773390257583,0.48880463,2096.6,2096.1,1.615]
[1773390259183,0.48880463,2096.6,2095.8,1.65833953]
[1773390259552,1.68126825,2096.5,2095.8,1.65833953]
[1773390259746,1.68126825,2096.5,2095.8,0.46551472]
[1773390259982,1.68126825,2096.5,2095.6,1.65847811]
[1773390259983,0.48880463,2096.4,2095.6,1.65847811]
[1773390260459,0.48880463,2096.4,2095.7,1.616]
[1773390261462,1.6849172,2096.6,2096.0,1.66905316]
[1773390263083,0.49246636,2097.1,2096.2,0.47630507]
[1773390263577,0.49246636,2096.9,2096.3,2.80957739]
[1773390264795,0.49246636,2096.9,2096.3,3.28588246]
[1773390265601,1.1921793,2097.0,2096.4,0.47630507]
[1773390265788,1.1921793,2097.0,2096.4,1.66877384]
[1773390266286,0.49246636,2096.9,2096.4,0.47630507]
[1773390266583,0.002,2096.7,2096.4,0.47630507]
[1773390268186,0.002,2096.7,2096.4,1.6688224]
[1773390269593,0.002,2096.7,2096.5,0.47630507]
[1773390269791,0.002,2096.9,2096.5,0.47630507]
[1773390270859,0.002,2096.9,2096.5,1.6687656]
[1773390274601,0.002,2096.9,2096.6,0.47630507]
[1773390275105,0.49246636,2097.4,2096.6,2.02143003]
[1773390275305,1.19201283,2097.3,2096.7,0.47630507]
[1773390275510,1.19201283,2097.3,2096.9,0.47630507]
[1773390276091,1.68442687,2097.4,2096.9,0.47630507]
[1773390277205,1.68442687,2097.4,2096.9,1.66853663]
[1773390278315,0.49246636,2097.3,2096.6,1.19238583]
[1773390278485,0.49246636,2097.3,2096.7,1.62]
[1773390278886,0.49246636,2097.1,2096.7,1.62]
[1773390279589,0.49446636,2097.1,2096.7,1.621]
[1773390280916,0.002,2097.3,2096.9,0.47630507]
[1773390283393,0.002,2097.3,2097.0,1.1921793]
[1773390284389,0.49446636,2097.3,2096.7,1.621]
[1773390285520,0.46642372,2097.1,2096.7,1.621]
[1773390286314,0.46642372,2097.1,2096.5,0.001]
[1773390287414,0.46642372,2097.1,2096.6,1.62]
[1773390287619,1.65860302,2097.0,2096.6,1.62]
[1773390287918,0.46642372,2096.9,2096.6,1.62]
[1773390290314,1.65866059,2096.9,2096.6,1.62]
[1773390290794,0.46642372,2096.9,2096.6,1.62]
[1773390290997,0.46642372,2096.9,2096.6,2.81236793]
[1773390291316,0.46642372,2096.9,2096.6,1.62]
[1773390291901,0.46642372,2096.9,2096.6,2.81240507]
[1773390292214,0.46642372,2096.9,2096.6,1.62]
[1773390292596,1.65867163,2096.9,2096.6,1.62]
[1773390293127,1.65867163,2096.9,2096.7,0.001]
[1773390293432,1.66067163,2096.9,2096.7,0.001]
[1773390293726,0.49483921,2096.8,2096.5,0.001]
[1773390294027,1.19234988,2096.7,2096.5,0.001]
[1773390294835,1.19234988,2096.7,2096.3,0.001]
[1773390294836,0.49483921,2096.6,2096.3,0.001]
[1773390296114,1.68714166,2096.8,2096.3,1.64420822]
[1773390296428,0.49483921,2096.7,2096.3,1.622]
[1773390297102,0.49483921,2096.7,2096.2,0.001]
[1773390298002,0.49483921,2096.4,2096.0,0.001]
[1773390298199,1.19244894,2096.6,2096.0,0.001]
[1773390298396,0.49483921,2096.5,2096.0,0.001]
[1773390298932,0.49483921,2096.5,2096.1,1.612]
[1773390300023,0.49483921,2096.3,2096.0,0.001]
[1773390300939,0.49483921,2096.8,2096.0,0.49935793]
[1773390301930,0.49483921,2096.8,2096.0,1.616]
[1773390302132,0.49483921,2096.6,2095.8,0.45164801]
[1773390302332,0.49483921,2096.6,2095.8,0.001]
[1773390302710,0.49483921,2096.5,2095.8,0.001]
[1773390304534,0.49483921,2096.3,2095.8,0.001]
[1773390306721,0.49483921,2096.1,2095.8,0.001]
[1773390306955,0.49483921,2096.1,2096.0,0.001]
[1773390307311,0.49483921,2096.2,2096.0,0.001]
[1773390307735,1.19262278,2096.3,2096.0,0.001]
[1773390308245,0.49483921,2096.6,2096.0,0.45164801]
[1773390308446,0.49483921,2096.6,2096.1,0.49835565]
[1773390308739,0.49483921,2096.8,2096.3,0.45064801]
[1773390308951,0.49483921,2096.8,2096.4,1.604]
[1773390309263,1.6871338,2096.8,2096.4,1.604]
[1773390309439,0.49483921,2096.7,2096.4,1.604]
[1773390310353,1.19229459,2096.8,2096.4,1.604]
[1773390312252,1.6871338,2096.8,2096.4,1.604]
[1773390316755,0.49483921,2096.7,2096.4,1.604]
[1773390317324,1.19229459,2096.8,2096.4,2.79651855]
[1773390317555,1.6871338,2096.8,2096.4,2.79651855]
[1773390317756,1.6871338,2096.8,2096.4,1.604]
[1773390318153,1.6871338,2096.8,2096.4,2.79651184]
[1773390318154,0.49483921,2096.8,2096.4,2.79651184]
[1773390318359,0.49483921,2096.8,2096.4,3.24715985]
[1773390319638,0.002,2096.6,2096.4,3.24715985]
[1773390320960,0.46679643,2096.6,2096.4,1.604]
[1773390321359,0.46479643,2096.5,2096.2,0.001]
[1773390321763,1.19445297,2096.6,2096.2,1.67226712]
[1773390321764,0.002,2096.6,2096.2,1.67226712]
[1773390321938,0.002,2096.6,2096.3,0.52634021]
[1773390322557,0.002,2096.6,2096.4,1.615]
[1773390323060,0.002,2096.6,2096.5,0.04769854]
[1773390323359,0.002,2096.6,2096.4,1.615]
[1773390323928,0.002,2096.6,2096.4,2.80747555]
[1773390325862,0.002,2096.6,2096.4,3.28611267]
[1773390326070,0.002,2096.8,2096.5,0.52633566]
[1773390328043,0.002,2096.8,2096.5,1.71876547]
[1773390328429,0.002,2096.8,2096.5,1.67106693]
[1773390330536,0.002,2096.8,2096.6,0.52633339]
[1773390331167,0.002,2097.1,2096.7,0.47863712]
[1773390331367,1.65891928,2097.1,2096.8,1.62]
[1773390331890,0.46679643,2097.1,2096.8,1.62]
[1773390334450,0.002,2096.9,2096.8,1.62]
[1773390335473,0.46679643,2096.9,2096.4,0.47863712]
[1773390335719,0.46479643,2096.8,2096.5,1.623]
[1773390336172,0.46479643,2096.8,2096.2,0.001]
[1773390336372,0.46479643,2096.6,2096.2,0.001]
[1773390337280,0.46479643,2096.6,2096.2,1.624]
[1773390338480,0.46479643,2096.6,2096.0,0.001]
[1773390338481,0.46479643,2096.4,2096.0,0.001]
[1773390338667,0.46479643,2096.3,2095.7,0.001]
[1773390340486,0.46479643,2096.1,2095.7,0.001]
[1773390341454,0.46479643,2096.1,2095.7,0.002]
[1773390342567,1.65753362,2096.1,2095.7,0.002]
[1773390343070,0.46479643,2096.0,2095.7,0.002]
[1773390345478,0.45463926,2095.9,2095.5,0.001]
[1773390345656,0.45463926,2095.9,2095.2,0.47151882]
[1773390345863,0.45463926,2095.7,2095.2,0.47151882]
[1773390346080,0.45463926,2095.7,2095.1,1e-08]
[1773390346360,0.45463926,2095.7,2094.9,0.0011]
[1773390346864,0.45463926,2095.7,2094.9,1.6051]
[1773390347072,0.45463926,2095.7,2095.6,0.001]
[1773390347287,0.45463926,2095.7,2095.4,0.0002]
[1773390347597,0.45463926,2095.5,2094.9,1.5991]
[1773390348890,0.45463926,2095.5,2094.6,4.77516559]
[1773390348891,0.45463926,2095.4,2094.6,0.0011]
[1773390349499,0.45463926,2095.2,2094.6,0.0011]
[1773390350286,0.45463926,2095.2,2094.6,1.6051]
[1773390353311,1.19326046,2095.1,2094.6,3.27999165]
[1773390353606,0.45198217,2095.6,2094.7,0.52912542]
[1773390354100,0.45198217,2095.6,2094.7,0.48138589]
[1773390354481,0.45198217,2095.6,2094.9,0.48138589]
[1773390354806,0.45198217,2095.6,2095.0,0.52803892]
[1773390355009,0.45198217,2095.8,2095.0,0.52803892]
[1773390355309,0.45198217,2095.8,2095.2,0.48138589]
[1773390355496,1.64474207,2096.0,2095.4,0.48138589]
[1773390356177,1.64455956,2096.3,2095.4,0.48138589]
[1773390356394,0.45198217,2096.3,2095.4,0.48138589]
[1773390358179,0.45198217,2096.1,2095.5,1.19303268]
[1773390359804,0.45198217,2096.1,2095.4,1.67444717]
[1773390360207,0.002,2095.7,2095.4,1.67444717]
[1773390362202,0.002,2095.7,2095.5,0.48138589]
[1773390364004,1.64673093,2096.0,2095.5,0.48138589]
[1773390364705,0.002,2096.0,2095.6,1.67436164]
[1773390364913,0.002,2096.0,2095.7,0.48138589]
[1773390365079,1.64450277,2096.4,2095.7,0.48138589]
[1773390365504,1.64450834,2096.4,2095.7,0.48138589]
[1773390366011,0.45198217,2096.3,2095.7,0.48138589]
[1773390367093,1.6445606,2096.3,2095.8,1.19286191]
[1773390367390,1.6445606,2096.3,2095.9,1.622]
[1773390368007,0.45198217,2096.3,2095.9,1.622]
[1773390368312,0.45198217,2096.7,2096.0,0.48138589]
[1773390369320,1.64438892,2096.6,2096.0,1.67408565]
[1773390369925,0.45198217,2096.4,2095.8,1.624]
[1773390372481,0.45198217,2096.2,2095.8,1.624]
[1773390374914,0.45198217,2096.0,2095.6,0.0011]
[1773390376110,0.45198217,2096.0,2095.6,1.6281]
[1773390376814,0.45198217,2096.0,2095.6,2.86878966]
[1773390377021,1.64473054,2096.0,2095.6,2.86878966]
[1773390377196,0.45198217,2096.0,2095.6,2.86878966]
[1773390377714,1.64475919,2096.0,2095.6,1.67581903]
[1773390378121,1.64475919,2096.0,2095.6,1.6281]
[1773390378799,1.64475919,2096.0,2095.6,2.82106864]
[1773390379415,0.001,2096.4,2095.6,2.82106864]
[1773390379416,1.64551049,2096.4,2095.7,0.52910264]
[1773390379628,1.6455243,2096.4,2095.7,0.52910264]
[1773390382123,0.49953688,2096.3,2095.8,1.67430259]
[1773390382310,0.49953688,2096.3,2095.7,1.1928786]
[1773390382818,0.49953688,2096.3,2095.7,1.67431928]
[1773390383521,0.49953688,2096.3,2095.8,0.48144068]
[1773390384525,0.49953688,2096.3,2095.9,1.192805]
[1773390384694,1.69214821,2096.3,2095.8,1.67426184]
[1773390384891,0.001,2096.2,2095.8,1.67426184]
[1773390385723,0.001,2096.2,2095.9,0.48144068]
[1773390386620,0.001,2096.2,2095.9,1.67421391]
[1773390387498,0.001,2096.2,2096.0,0.48144068]
[1773390387701,0.001,2096.2,2096.1,1.629]
[1773390392637,0.001,2096.2,2096.1,3.30313186]
[1773390392839,0.001,2096.2,2096.1,2.11044068]